fUST/lending_fUST_20241108
["ID","MTS","AMOUNT","RATE_DAILY","PERIOD"]
[341563047,1730997049804,-211.558392,0.000319,7]
[341563048,1730997049814,-151.0,0.000319,7]
[341563049,1730997049826,-151.0,0.000319,7]
[341563050,1730997049838,-151.0,0.000319,7]
[341563051,1730997049848,-151.0,0.000319,7]
[341563052,1730997049859,-346.253768,0.000319,7]
[341563053,1730997049868,-346.253768,0.000319,7]
[341563054,1730997049879,-346.253768,0.000319,7]
[341563055,1730997049890,-346.253768,0.000319,7]
[341563056,1730997049901,-346.253768,0.000319,7]
[341563057,1730997049912,-346.253768,0.000319,7]
[341563058,1730997049922,-346.253768,0.000319,7]
[341563059,1730997049933,-346.253766,0.000319,7]
[341563060,1730997049943,-459.558911,0.000319,7]
[341563061,1730997049954,-459.558911,0.000319,7]
[341563062,1730997049964,-459.558911,0.000319,7]
[341563063,1730997049973,-459.558911,0.000319,7]
[341563064,1730997049981,-459.558911,0.000319,7]
[341563065,1730997049990,-459.558911,0.000319,7]
[341563066,1730997049999,-459.558911,0.000319,7]
[341563067,1730997050008,-459.558917,0.000319,7]
[341563068,1730997050019,-56047.25105554,0.000319,2]
[341563069,1730997050261,-60.27243025,0.00030956,2]
[341563070,1730997050272,-439.72756975,0.00030956,2]
[341563071,1730997050281,-424024.77297851,0.000319,2]
[341563073,1730997175947,158.427738,0.00013973,2]
[341563076,1730997652584,161.979316,0.00013973,2]
[341563116,1730998187418,158.847562,0.00013973,2]
[341563172,1730998240308,-158.847562,0.00022174,2]
[341563173,1730998240318,-300.0,0.00027999,2]
[341563174,1730998240329,-384.4997826,0.00028,30]
[341563191,1730998243200,-8129.83104649,0.00028,30]
[341563192,1730998243311,-1465.08270536,0.00028,30]
[341563193,1730998243321,-253.96121015,0.00028143,2]
[341563194,1730998243330,-232.379262,0.00028213,2]
[341563195,1730998243341,-3866.5290198,0.00028243,2]
[341563196,1730998243351,-253.96121013,0.00029494,2]
[341563197,1730998243361,-176.684135,0.00029959,2]
[341563198,1730998243370,-420.0,0.00030239,2]
[341563199,1730998243379,-158.847562,0.00030374,2]
[341563200,1730998243388,-176.684135,0.00030458,2]
[341563201,1730998243397,-253.96121013,0.00030845,2]
[341563202,1730998243407,-180.30224153,0.00030854,2]
[341563203,1730998243416,-500.0,0.00030945,2]
[341563204,1730998243425,-513.34439507,0.00030945,2]
[341563205,1730998243435,-500.0,0.00030945,2]
[341563206,1730998243444,-500.0,0.00030945,2]
[341563207,1730998243454,-500.0,0.00030945,2]
[341563208,1730998243463,-487.6,0.00030945,2]
[341563209,1730998243472,-233.24974041,0.00030945,2]
[341563210,1730998243482,-500.0,0.00030945,2]
[341563211,1730998243492,-500.0,0.00030945,2]
[341563212,1730998243502,-500.0,0.00030945,2]
[341563213,1730998243512,-507.28269997,0.00030945,2]
[341563214,1730998243522,-370.60768278,0.00030945,2]
[341563215,1730998243534,-406.06965389,0.00030945,2]
[341563216,1730998243543,-320.82381325,0.00030945,2]
[341563217,1730998243554,-510.37052922,0.00030945,2]
[341563218,1730998243565,-500.0,0.00030945,2]
[341563219,1730998243574,-500.0,0.00030945,2]
[341563220,1730998243583,-500.0,0.00030945,2]
[341563221,1730998243593,-500.0,0.00030945,2]
[341563222,1730998243602,-500.0,0.00030945,2]
[341563223,1730998243611,-500.0,0.00030945,2]
[341563224,1730998243621,-500.0,0.00030945,2]
[341563225,1730998243632,-500.0,0.00030945,2]
[341563226,1730998243643,-322.54305302,0.00030945,2]
[341563227,1730998243654,-533.31,0.00030945,2]
[341563228,1730998243663,-2164.64,0.00030945,2]
[341563229,1730998243672,-500.0,0.00030945,2]
[341563230,1730998243683,-2318.93,0.00030945,2]
[341563231,1730998243693,-500.0,0.00030945,2]
[341563232,1730998243702,-500.0,0.00030945,2]
[341563233,1730998243711,-500.0,0.00030945,2]
[341563234,1730998243720,-503.92537894,0.00030945,2]
[341563235,1730998243729,-500.0,0.00030945,2]
[341563236,1730998243738,-504.70466135,0.00030945,2]
[341563237,1730998243748,-502.11619008,0.00030945,2]
[341563238,1730998243757,-500.0,0.00030945,2]
[341563239,1730998243766,-410.78239617,0.00030945,2]
[341563240,1730998243776,-427.36,0.00030946,3]
[341563241,1730998243785,-213.68,0.00030946,3]
[341563242,1730998243794,-641.05,0.00030946,3]
[341563243,1730998243804,-500.0,0.00030953,2]
[341563244,1730998243820,-500.0,0.00030953,2]
[341563245,1730998243831,-500.0,0.00030953,2]
[341563246,1730998243840,-500.0,0.00030953,2]
[341563247,1730998243850,-500.0,0.00030953,2]
[341563248,1730998243860,-500.0,0.00030953,2]
[341563249,1730998243869,-500.0,0.00030953,2]
[341563250,1730998243879,-500.0,0.00030953,2]
[341563251,1730998243888,-500.0,0.00030953,2]
[341563252,1730998243897,-500.0,0.00030953,2]
[341563253,1730998243906,-500.0,0.00030953,2]
[341563254,1730998243915,-500.0,0.00030953,2]
[341563255,1730998243924,-500.0,0.00030953,2]
[341563256,1730998243933,-500.0,0.00030953,2]
[341563257,1730998243943,-500.0,0.00030953,2]
[341563258,1730998243952,-500.0,0.00030953,2]
[341563259,1730998243962,-511.29685539,0.00030953,2]
[341563260,1730998243972,-532.7482526,0.00030953,2]
[341563261,1730998243981,-500.0,0.00030953,2]
[341563262,1730998243990,-500.0,0.00030953,2]
[341563263,1730998244000,-500.0,0.00030953,2]
[341563264,1730998244009,-500.0,0.00030953,2]
[341563265,1730998244019,-500.0,0.00030953,2]
[341563266,1730998244030,-500.0,0.00030953,2]
[341563267,1730998244039,-500.0,0.00030953,2]
[341563268,1730998244048,-503.62948781,0.00030954,2]
[341563269,1730998244057,-500.0,0.00030954,2]
[341563270,1730998244067,-500.0,0.00030954,2]
[341563271,1730998244081,-500.0,0.00030954,2]
[341563272,1730998244090,-335.15129115,0.00030954,2]
[341563274,1730998246143,-189.22860976,0.00030954,2]
[341563275,1730998246155,-504.64514389,0.00030954,2]
[341563276,1730998246167,-518.94122464,0.00030954,2]
[341563277,1730998246176,-500.0,0.00030954,2]
[341563278,1730998246187,-243.48057354,0.00030954,2]
[341563279,1730998246198,-504.43599215,0.00030954,2]
[341563280,1730998246207,-500.0,0.00030954,2]
[341563281,1730998246216,-500.0,0.00030954,2]
[341563282,1730998246226,-254.37968689,0.00030954,2]
[341563283,1730998246235,-101.64310003,0.00030954,2]
[341563284,1730998246248,-398.35689997,0.00030954,2]
[341563285,1730998246258,-146.14310003,0.00030954,2]
[341563290,1730998687190,164.690162,0.00013973,2]
[341563295,1730999216549,159.293468,0.00013973,2]
[341563358,1730999432387,-159.293468,0.00023435,2]
[341563359,1730999432397,-295.388551,0.00028425,2]
[341563360,1730999432407,-293.1601465,0.00028464,2]
[341563361,1730999432416,-939.0645144,0.00028526,2]
[341563362,1730999432428,-188.8216757,0.0002879,61]
[341563363,1730999432439,-295.388551,0.0002911,2]
[341563364,1730999432450,-295.388551,0.00029795,2]
[341563365,1730999432461,-176.684136,0.00029959,2]
[341563366,1730999432471,-164.494,0.0003001,2]
[341563367,1730999432483,-180.30224151,0.00030844,2]
[341563368,1730999432493,-213.68,0.00030934,3]
[341563369,1730999432504,-213.68,0.00030935,3]
[341563370,1730999432513,-213.68,0.00030935,3]
[341563371,1730999432522,-1451.5,0.00030935,10]
[341563372,1730999432532,-1209.59,0.00030935,10]
[341563373,1730999432541,-1007.99,0.00030935,10]
[341563374,1730999432551,-400.0,0.00030941,2]
[341563375,1730999432562,-500.0,0.00030942,2]
[341563376,1730999432571,-500.0,0.00030942,2]
[341563377,1730999432581,-500.0,0.00030942,2]
[341563378,1730999432590,-500.0,0.00030942,2]
[341563379,1730999432600,-500.0,0.00030942,2]
[341563380,1730999432610,-500.0,0.00030942,2]
[341563381,1730999432620,-500.0,0.00030942,2]
[341563382,1730999432629,-500.0,0.00030942,2]
[341563383,1730999432640,-500.0,0.00030942,2]
[341563385,1730999432652,-500.0,0.00030942,2]
[341563387,1730999432663,-500.0,0.00030942,2]
[341563389,1730999432672,-500.0,0.00030942,2]
[341563390,1730999432682,-500.0,0.00030942,2]
[341563392,1730999432692,-440.62237418,0.00030942,2]
[341563395,1730999432703,-500.0,0.00030942,2]
[341563397,1730999432715,-586.96,0.00030942,2]
[341563399,1730999432726,-597.65792378,0.00030942,2]
[341563401,1730999432736,-500.0,0.00030942,2]
[341563403,1730999432746,-500.0,0.00030942,2]
[341563405,1730999432757,-500.0,0.00030942,2]
[341563407,1730999432767,-528.36394412,0.00030942,2]
[341563409,1730999432777,-2347.88,0.00030942,2]
[341563411,1730999432787,-614.73,0.00030942,2]
[341563413,1730999432798,-500.0,0.00030942,2]
[341563415,1730999432809,-500.0,0.00030942,2]
[341563417,1730999432819,-500.0,0.00030942,2]
[341563419,1730999432830,-500.0,0.00030942,2]
[341563421,1730999432840,-1909.26065113,0.00030942,2]
[341563598,1730999438664,-3886.5290198,0.00028919,2]
[341563600,1730999438674,-213.68,0.00030933,3]
[341563602,1730999438683,-839.99,0.00030935,10]
[341563604,1730999438693,-1055.99934887,0.00030942,2]
[341563606,1730999438702,-500.0,0.00030942,2]
[341563609,1730999438712,-584.36631282,0.00030942,2]
[341563611,1730999438722,-39.35197384,0.00030942,2]
[341563730,1730999440314,-460.64802616,0.00030942,2]
[341563731,1730999440324,-275.58418924,0.00030942,2]
[341563732,1730999440333,-494.6450411,0.00030942,2]
[341563733,1730999440345,-5.3549589,0.00030942,2]
[341563734,1730999440354,-487.43975495,0.00030942,2]
[341563735,1730999440363,-175.324,0.00030943,27]
[341563736,1730999440372,-297.01634012,0.00030943,2]
[341563737,1730999440381,-201.44585627,0.00030943,2]
[341563738,1730999440391,-2336.0,0.00030943,2]
[341563739,1730999440400,-500.0,0.00030943,2]
[341563740,1730999440409,-352.47108711,0.00030943,2]
[341563741,1730999440420,-500.0,0.00030943,2]
[341563742,1730999440431,-500.0,0.00030943,2]
[341563743,1730999440441,-500.0,0.00030943,2]
[341563744,1730999440450,-199.20882021,0.00030943,2]
[341563745,1730999440459,-500.0,0.00030943,2]
[341563746,1730999440469,-500.0,0.00030943,2]
[341563747,1730999440478,-500.0,0.00030943,2]
[341563748,1730999440580,-477.5243211,0.00030943,2]
[341563750,1730999440596,-22.4756789,0.00030943,2]
[341563751,1730999440605,-500.0,0.00030943,2]
[341563753,1730999440615,-500.0,0.00030943,2]
[341563754,1730999440624,-300.9243211,0.00030943,2]
[341563757,1730999443607,-1298.44466067,0.00030843,2]
[341563758,1730999443618,-199.0756789,0.00030943,2]
[341563759,1730999443627,-500.0,0.00030943,2]
[341563761,1730999443637,-500.0,0.00030943,2]
[341563763,1730999443646,-500.0,0.00030943,2]
[341563764,1730999443656,-500.0,0.00030943,2]
[341563765,1730999443666,-500.0,0.00030943,2]
[341563767,1730999443675,-500.0,0.00030943,2]
[341563769,1730999443686,-475.89037938,0.00030943,2]
[341563775,1730999443726,-24.10962062,0.00030943,2]
[341563777,1730999443735,-500.0,0.00030943,2]
[341563778,1730999443744,-201.50626268,0.00030943,2]
[341563779,1730999443753,-500.0,0.00030943,2]
[341563780,1730999443764,-500.0,0.00030943,2]
[341563781,1730999443773,-500.0,0.00030943,2]
[341563782,1730999443783,-500.0,0.00030943,2]
[341563783,1730999443792,-500.0,0.00030943,2]
[341563784,1730999443801,-399.3841167,0.00030943,2]
[341563785,1730999443813,-100.6158833,0.00030943,2]
[341563786,1730999443822,-500.0,0.00030943,2]
[341563787,1730999443831,-500.0,0.00030943,2]
[341563788,1730999443841,-500.0,0.00030943,2]
[341563789,1730999443851,-500.0,0.00030943,2]
[341563790,1730999443862,-500.0,0.00030943,2]
[341563791,1730999443871,-500.0,0.00030943,2]
[341563792,1730999443881,-521.83850951,0.00030943,2]
[341563793,1730999443890,-278.03119186,0.00030943,2]
[341563794,1730999443900,-500.0,0.00030943,2]
[341563795,1730999443910,-500.0,0.00030943,2]
[341563796,1730999443919,-500.0,0.00030943,2]
[341563797,1730999443929,-500.0,0.00030943,2]
[341563798,1730999443938,-500.0,0.00030943,2]
[341563799,1730999443947,-500.0,0.00030943,2]
[341563800,1730999443956,-500.0,0.00030943,2]
[341563801,1730999443966,-500.0,0.00030943,2]
[341563802,1730999443975,-508.71220348,0.00030943,2]
[341563803,1730999443985,-559.34,0.00030943,2]
[341563804,1730999443994,-500.0,0.00030943,2]
[341563805,1730999444003,-618.3,0.00030943,2]
[341563806,1730999444014,-234.34814784,0.00030943,2]
[341563807,1730999444024,-500.0,0.00030943,2]
[341563808,1730999444033,-502.6910432,0.00030943,2]
[341563809,1730999444044,-502.94958202,0.00030943,2]
[341563810,1730999444053,-500.0,0.00030943,2]
[341563811,1730999444062,-500.0,0.00030943,2]
[341563812,1730999444072,-169.68108327,0.00030943,2]
[341563813,1730999444082,-500.0,0.00030943,2]
[341563814,1730999444091,-520.70841967,0.00030943,2]
[341563815,1730999444100,-500.0,0.00030943,2]
[341563816,1730999444110,-500.0,0.00030943,2]
[341563817,1730999444120,-515.56539083,0.00030943,2]
[341563818,1730999444130,-500.0,0.00030943,2]
[341563819,1730999444141,-500.0,0.00030943,2]
[341563820,1730999444152,-500.0,0.00030943,2]
[341563821,1730999444162,-500.0,0.00030943,2]
[341563822,1730999444172,-509.7261097,0.00030943,2]
[341563823,1730999444181,-500.0,0.00030943,2]
[341563824,1730999444190,-365.29854441,0.00030943,2]
[341563825,1730999444200,-500.0,0.00030943,2]
[341563826,1730999444210,-200.6228251,0.00030943,2]
[341563827,1730999444219,-513.49602127,0.00030943,2]
[341563828,1730999444230,-500.0,0.00030943,2]
[341563829,1730999444241,-500.0,0.00030943,2]
[341563830,1730999444251,-504.14350505,0.00030943,2]
[341563831,1730999444261,-501.8074694,0.00030943,2]
[341563832,1730999444274,-502.96751105,0.00030943,2]
[341563833,1730999444283,-500.0,0.00030943,2]
[341563834,1730999444293,-505.73462344,0.00030943,2]
[341563835,1730999444302,-500.0,0.00030943,2]
[341563836,1730999444311,-504.27712107,0.00030943,2]
[341563837,1730999444320,-500.0,0.00030943,2]
[341563838,1730999444330,-578.29526671,0.00030943,2]
[341563839,1730999444340,-477.83855266,0.00030943,2]
[341563840,1730999444349,-500.0,0.00030943,2]
[341563841,1730999444359,-505.71914092,0.00030943,2]
[341563842,1730999444369,-500.0,0.00030943,2]
[341563843,1730999444379,-500.0,0.00030943,2]
[341563844,1730999444389,-500.0,0.00030943,2]
[341563845,1730999444398,-527.1180996,0.00030943,2]
[341563846,1730999444407,-509.34725419,0.00030943,2]
[341563847,1730999444418,-500.0,0.00030943,2]
[341563848,1730999444430,-500.0,0.00030943,2]
[341563849,1730999444442,-198.64381512,0.00030943,2]
[341563850,1730999444453,-500.0,0.00030943,2]
[341563851,1730999444463,-626.71494926,0.00030943,2]
[341563852,1730999444473,-500.0,0.00030943,2]
[341563853,1730999444485,-503.05059711,0.00030943,2]
[341563854,1730999444495,-500.0,0.00030943,2]
[341563855,1730999444505,-355.35730966,0.00030943,2]
[341563856,1730999444518,-500.0,0.00030943,2]
[341563857,1730999444527,-500.0,0.00030943,2]
[341563858,1730999444537,-500.0,0.00030943,2]
[341563859,1730999444546,-366.11959089,0.00030943,2]
[341563860,1730999444557,-500.0,0.00030943,2]
[341563861,1730999444566,-500.0,0.00030943,2]
[341563862,1730999444575,-512.9141499,0.00030943,2]
[341563863,1730999444584,-500.0,0.00030943,2]
[341563864,1730999444593,-500.0,0.00030943,2]
[341563865,1730999444602,-500.0,0.00030943,2]
[341563866,1730999444611,-500.0,0.00030943,2]
[341563867,1730999444621,-500.0,0.00030943,2]
[341563868,1730999444630,-500.0,0.00030943,2]
[341563869,1730999444639,-500.0,0.00030943,2]
[341563870,1730999444649,-265.28700354,0.00030943,2]
[341563871,1730999444658,-508.34451773,0.00030943,2]
[341563872,1730999444668,-500.0,0.00030943,2]
[341563873,1730999444677,-500.0,0.00030943,2]
[341563874,1730999444687,-500.0,0.00030943,2]
[341563875,1730999444696,-500.0,0.00030943,2]
[341563876,1730999444706,-501.98599992,0.00030943,2]
[341563877,1730999444715,-500.0,0.00030943,2]
[341563878,1730999444725,-500.0,0.00030943,2]
[341563879,1730999444734,-500.0,0.00030943,2]
[341563880,1730999444743,-500.0,0.00030943,2]
[341563881,1730999444754,-580.48223753,0.00030943,2]
[341563882,1730999444766,-645.2158276,0.00030943,2]
[341563883,1730999444776,-500.0,0.00030943,2]
[341563884,1730999444785,-418.23917679,0.00030943,2]
[341563885,1730999444794,-471.78816458,0.00030943,2]
[341563886,1730999444804,-500.0,0.00030943,2]
[341563887,1730999444813,-500.0,0.00030943,2]
[341563888,1730999444823,-500.0,0.00030943,2]
[341563889,1730999444834,-515.47797618,0.00030943,2]
[341563890,1730999444845,-500.0,0.00030943,2]
[341563891,1730999444855,-500.0,0.00030943,2]
[341563892,1730999444864,-512.28536011,0.00030943,2]
[341563893,1730999444874,-500.0,0.00030943,2]
[341563894,1730999444883,-200.25897661,0.00030943,2]
[341563895,1730999444892,-377.79,0.00030943,2]
[341563896,1730999444901,-500.0,0.00030943,2]
[341563897,1730999444911,-503.09019801,0.00030944,2]
[341563898,1730999444920,-953.98,0.00030944,2]
[341563899,1730999444930,-500.0,0.00030944,2]
[341563900,1730999444939,-500.0,0.00030944,2]
[341563901,1730999444948,-500.0,0.00030944,2]
[341563902,1730999444959,-500.0,0.00030945,2]
[341563903,1730999444969,-500.0,0.00030945,2]
[341563904,1730999444978,-275.23899292,0.00030945,2]
[341563905,1730999444987,-500.0,0.00030945,2]
[341563906,1730999444997,-500.0,0.00030945,2]
[341563907,1730999445007,-542.63860161,0.00030945,2]
[341563908,1730999445019,-510.68484845,0.00030945,2]
[341563909,1730999445031,-503.36416762,0.00030945,2]
[341563910,1730999445041,-513.64623643,0.00030945,2]
[341563911,1730999445050,-500.0,0.00030945,2]
[341563912,1730999445060,-527.62578662,0.00030945,2]
[341563913,1730999445070,-626.96487739,0.00030945,2]
[341563914,1730999445079,-500.0,0.00030945,2]
[341563915,1730999445089,-414.00889051,0.00030945,2]
[341563916,1730999445098,-515.2727839,0.00030945,2]
[341563917,1730999445107,-289.70622921,0.00030945,2]
[341563918,1730999445118,-500.0,0.00030945,2]
[341563919,1730999445129,-510.11468055,0.00030945,2]
[341563920,1730999445139,-207.01721544,0.00030945,2]
[341563921,1730999445149,-500.0,0.00030945,2]
[341563922,1730999445159,-500.0,0.00030945,2]
[341563923,1730999445168,-500.0,0.00030945,2]
[341563924,1730999445178,-621.35228309,0.00030945,2]
[341563925,1730999445187,-500.0,0.00030945,2]
[341563926,1730999445197,-500.0,0.00030945,2]
[341563927,1730999445207,-500.0,0.00030945,2]
[341563928,1730999445218,-500.0,0.00030945,2]
[341563929,1730999445227,-500.0,0.00030945,2]
[341563930,1730999445238,-500.0,0.00030945,2]
[341563931,1730999445248,-320.47597957,0.00030945,2]
[341563932,1730999445259,-500.0,0.00030945,2]
[341563933,1730999445269,-500.0,0.00030945,2]
[341563934,1730999445278,-500.0,0.00030945,2]
[341563935,1730999445287,-501.96475091,0.00030945,2]
[341563936,1730999445296,-500.0,0.00030945,2]
[341563937,1730999445305,-401.98230533,0.00030945,2]
[341563938,1730999445315,-270.85638787,0.00030945,2]
[341563939,1730999445325,-501.79244697,0.00030954,2]
[341563940,1730999445334,-532.1807069,0.00030954,2]
[341563941,1730999445343,-514.12558386,0.00030954,2]
[341563942,1730999445352,-503.82113881,0.00030954,2]
[341563943,1730999445362,-500.0,0.00030954,2]
[341563944,1730999445371,-500.0,0.00030954,2]
[341563945,1730999445381,-500.0,0.00030954,2]
[341563946,1730999445396,-500.0,0.00030954,2]
[341563947,1730999445411,-500.0,0.00030954,2]
[341563948,1730999445423,-500.0,0.00030954,2]
[341563949,1730999445439,-507.84021264,0.00030954,2]
[341563950,1730999445449,-479.95199236,0.00030954,2]
[341563951,1730999445460,-500.0,0.00030955,2]
[341563952,1730999445470,-176.684135,0.00030958,2]
[341563953,1730999445481,-180.30224151,0.00031129,2]
[341563954,1730999445491,-500.0,0.00031152,5]
[341563955,1730999445501,-500.0,0.00031152,5]
[341563956,1730999445515,-500.0,0.00031216,2]
[341563957,1730999445525,-500.0,0.00031216,2]
[341563958,1730999445536,-177.47039217,0.00031216,2]
[341563959,1730999445546,-500.0,0.00031216,2]
[341563960,1730999445555,-500.0,0.00031216,2]
[341563961,1730999445565,-500.0,0.00031216,2]
[341563962,1730999445575,-381.42578081,0.00031216,2]
[341563963,1730999445585,-2347.88,0.00031216,2]
[341563964,1730999445594,-614.73,0.00031216,2]
[341563965,1730999445604,-500.0,0.00031216,2]
[341563966,1730999445615,-500.0,0.00031216,2]
[341563967,1730999445625,-2965.26,0.00031216,2]
[341563968,1730999445634,-2336.0,0.00031217,2]
[341563969,1730999445644,-173.89196664,0.00031217,2]
[341563970,1730999445654,-500.0,0.00031217,2]
[341563971,1730999445663,-501.76212153,0.00031217,2]
[341563972,1730999445673,-500.0,0.00031217,2]
[341563973,1730999445682,-500.0,0.00031217,2]
[341563974,1730999445692,-500.0,0.00031217,2]
[341563975,1730999445702,-500.0,0.00031217,2]
[341563976,1730999445712,-500.0,0.00031217,2]
[341563977,1730999445722,-500.0,0.00031217,2]
[341563978,1730999445733,-500.0,0.00031217,2]
[341563979,1730999445743,-472.26,0.00031217,2]
[341563980,1730999445754,-500.0,0.00031217,2]
[341563981,1730999445895,-534.52881182,0.00031217,2]
[341563983,1730999445904,-500.0,0.00031217,2]
[341563984,1730999445915,-500.0,0.00031217,2]
[341563985,1730999445926,-500.0,0.00031217,2]
[341563986,1730999445936,-405.29017263,0.00031217,2]
[341563987,1730999445946,-539.90205656,0.00031217,2]
[341563988,1730999445958,-569.11211755,0.00031217,2]
[341563989,1730999445967,-500.0,0.00031217,2]
[341563990,1730999445982,-500.0,0.00031217,2]
[341563991,1730999445995,-508.20535893,0.00031217,2]
[341563992,1730999446007,-529.43441727,0.00031217,2]
[341563993,1730999446018,-500.0,0.00031217,2]
[341563994,1730999446027,-500.0,0.00031217,2]
[341563995,1730999446037,-511.12333463,0.00031217,2]
[341563996,1730999446046,-953.98,0.00031218,2]
[341563997,1730999446056,-500.0,0.00031219,2]
[341563998,1730999446066,-150.0,0.0003122,2]
[341563999,1730999446076,-438.879,0.0003122,2]
[341564001,1730999446087,-1134.0,0.0003122,2]
[341564002,1730999446098,-2392.0,0.0003122,2]
[341564003,1730999446108,-500.0,0.00031296,5]
[341564004,1730999446121,-500.0,0.00031296,2]
[341564005,1730999446130,-246.07540884,0.00031296,2]
[341564006,1730999446141,-500.0,0.00031296,5]
[341564008,1730999446152,-163.0,0.00031311,2]
[341564009,1730999446163,-501.5983851,0.00031311,5]
[341564010,1730999446174,-500.0,0.00031311,5]
[341564011,1730999446184,-180.30224151,0.00031415,2]
[341564012,1730999446193,-176.684136,0.00031457,2]
[341564013,1730999446203,-176.684135,0.00031457,2]
[341564014,1730999446213,-309.30325204,0.00031489,2]
[341564015,1730999446223,-448.97592228,0.00031489,2]
[341564016,1730999446233,-322.92759422,0.00031489,2]
[341564017,1730999446243,-197.17376641,0.00031489,2]
[341564019,1730999446255,-509.97578016,0.00031489,2]
[341564020,1730999446267,-381.62968858,0.00031489,2]
[341564022,1730999446276,-226.5375071,0.00031489,2]
[341564023,1730999446287,-600.0,0.0003149,2]
[341564024,1730999446296,-500.0,0.0003149,2]
[341564025,1730999446305,-263.84186728,0.0003149,2]
[341564027,1730999446316,-500.0,0.0003149,2]
[341564028,1730999446327,-2347.88,0.0003149,2]
[341564029,1730999446338,-614.73,0.0003149,2]
[341564030,1730999446357,-500.0,0.0003149,2]
[341564031,1730999446367,-500.0,0.0003149,2]
[341564032,1730999446377,-2965.26,0.0003149,2]
[341564033,1730999446389,-2336.0,0.00031491,2]
[341564034,1730999446399,-500.0,0.00031491,2]
[341564035,1730999446410,-500.0,0.00031491,2]
[341564036,1730999446420,-500.0,0.00031491,2]
[341564037,1730999446436,-500.0,0.00031491,2]
[341564038,1730999446446,-500.0,0.00031491,2]
[341564039,1730999446456,-500.0,0.00031491,2]
[341564040,1730999446466,-500.0,0.00031491,2]
[341564041,1730999446478,-953.98,0.00031492,2]
[341564042,1730999446488,-500.0,0.00031493,2]
[341564043,1730999446497,-500.0,0.000315,36]
[341564045,1730999446509,-7558.00045,0.00031581,2]
[341564047,1730999446519,-164.548,0.00031677,120]
[341564049,1730999446529,-502.54176911,0.00031687,5]
[341564051,1730999446538,-502.50620464,0.00031687,5]
[341564053,1730999446551,-1000.0,0.000317,2]
[341564055,1730999446561,-180.30224151,0.000317,2]
[341564057,1730999446571,-160.7717089,0.0003174,2]
[341564059,1730999446581,-500.0,0.00031764,2]
[341564061,1730999446591,-500.0,0.00031764,2]
[341564063,1730999446601,-2347.88,0.00031764,2]
[341564065,1730999446610,-614.73,0.00031764,2]
[341564067,1730999446623,-500.0,0.00031764,2]
[341564069,1730999446634,-500.0,0.00031764,2]
[341564072,1730999446645,-2965.26,0.00031764,2]
[341564074,1730999446655,-2336.0,0.00031765,2]
[341564076,1730999446666,-500.0,0.00031765,2]
[341564078,1730999446676,-500.0,0.00031765,2]
[341564080,1730999446685,-300.01632708,0.00031765,2]
[341564082,1730999446695,-500.0,0.00031765,2]
[341564084,1730999446704,-522.15716001,0.00031765,2]
[341564086,1730999446714,-500.0,0.00031765,2]
[341564088,1730999446723,-953.98,0.00031766,2]
[341564089,1730999446732,-500.0,0.00031767,2]
[341564091,1730999446742,-500.0,0.00031773,2]
[341564093,1730999446751,-501.57945964,0.00031773,5]
[341564095,1730999446761,-500.0,0.00031773,5]
[341564097,1730999446772,-500.7448973,0.00031773,5]